fUSD/lending_fUSD_20241009
["ID","MTS","AMOUNT","RATE_DAILY","PERIOD"]
[340063638,1728433833503,-151.0,0.00021918,2]
[340063639,1728433833512,-151.0,0.00021918,2]
[340063640,1728433833522,-251.32,0.00021918,2]
[340063641,1728433833533,-205.962223,0.00021918,7]
[340063642,1728433833543,-151.0,0.00021918,7]
[340063643,1728433833557,-151.0,0.00021918,7]
[340063644,1728433833566,-699.688717,0.00021918,7]
[340063645,1728433833576,-699.688717,0.00021918,7]
[340063646,1728433833585,-151.0,0.00021918,7]
[340063647,1728433833595,-157.59,0.00022079,2]
[340063648,1728433833605,-151.0,0.00022079,7]
[340063649,1728433833616,-150.01,0.00022087,2]
[340063650,1728433833625,-1117.37504093,0.00022087,2]
[340063651,1728433833634,-151.0,0.00022087,7]
[340063652,1728433833644,-172.48,0.00022118,2]
[340063653,1728433833653,-161.32,0.00022137,30]
[340063654,1728433833663,-151.0,0.00022435,7]
[340063655,1728433833675,-151.0,0.00022435,7]
[340063656,1728433833685,-282.326526,0.00022435,7]
[340063657,1728433833695,-284.52,0.00022474,2]
[340063658,1728433833704,-909.0,0.000226,2]
[340063659,1728433833713,-167.08,0.00022651,2]
[340063660,1728433833722,-207.07,0.0002266,2]
[340063661,1728433833732,-500.0,0.00022922,2]
[340063662,1728433833741,-500.0,0.00022922,2]
[340063663,1728433833751,-500.0,0.00022922,2]
[340063664,1728433833761,-500.0,0.00022922,2]
[340063665,1728433833770,-500.0,0.00022922,2]
[340063666,1728433833779,-500.0,0.00022922,2]
[340063667,1728433833789,-500.0,0.00022922,2]
[340063668,1728433833800,-500.0,0.00022922,2]
[340063669,1728433833809,-500.0,0.00022922,2]
[340063670,1728433833819,-500.0,0.00022922,2]
[340063671,1728433833829,-500.0,0.00022922,2]
[340063672,1728433833838,-264.01,0.00022922,2]
[340063673,1728433833848,-500.0,0.00022922,2]
[340063674,1728433833858,-500.0,0.00022922,2]
[340063675,1728433833867,-285.7,0.00022922,2]
[340063676,1728433833877,-195.518414,0.00022922,7]
[340063677,1728433833887,-699.688717,0.00022922,7]
[340063678,1728433833897,-699.688717,0.00022922,7]
[340063679,1728433833906,-151.0,0.00022922,7]
[340063680,1728433833916,-205.706622,0.00022922,7]
[340063681,1728433833929,-151.0,0.00022922,7]
[340063682,1728433833938,-157.59,0.00022975,2]
[340063683,1728433833948,-550.0,0.00023,2]
[340063684,1728433833957,-193.79344,0.00023,7]
[340063685,1728433833969,-303.76,0.00023,2]
[340063686,1728433833978,-1001.64,0.00023,2]
[340063687,1728433833988,-151.0,0.00023,7]
[340063688,1728433833997,-1000.0,0.000233,2]
[340063689,1728433834007,-284.52,0.00023544,2]
[340063690,1728433834017,-3000.0,0.000236,2]
[340063691,1728433834026,-151.0,0.000236,7]
[340063692,1728433834036,-150.75966,0.00023683,2]
[340063693,1728433834047,-8073.3963,0.00023712,2]
[340063694,1728433834057,-2500.0,0.00023712,2]
[340063695,1728433834066,-127385.9545,0.00023712,2]
[340063696,1728433834075,-699.688717,0.00023712,7]
[340063697,1728433834085,-699.688717,0.00023712,7]
[340063698,1728433834094,-151.0,0.00023712,7]
[340063699,1728433834104,-151.0,0.00023712,7]
[340063700,1728433834113,-151.0,0.00023712,7]
[340063701,1728433834122,-500.0,0.0002373,2]
[340063702,1728433834132,-2000.0,0.00023731,2]
[340063703,1728433834141,-500.0,0.00023731,2]
[340063704,1728433834151,-516.5994,0.00023802,2]
[340063705,1728433834160,-172.3410586,0.00023806,2]
[340063706,1728433834169,-239.49380713,0.00023811,2]
[340063707,1728433834178,-12892.9645,0.00023812,2]
[340063708,1728433834188,-45743.69847774,0.00023812,2]
[340063709,1728433834386,-812.9464343,0.00023812,2]
[340063710,1728433834398,-53443.35508796,0.00023812,2]
[340063711,1728433834407,-699.688717,0.00023812,7]
[340063712,1728433834416,-699.688717,0.00023812,7]
[340063713,1728433834425,-699.688717,0.00023812,7]
[340063714,1728433834435,-699.688717,0.00023812,7]
[340063715,1728433834444,-699.688717,0.00023812,7]
[340063716,1728433834453,-699.688717,0.00023812,7]
[340063717,1728433834462,-205.192838,0.00023812,7]
[340063718,1728433834472,-151.0,0.00023812,7]
[340063719,1728433834481,-151.0,0.00023812,7]
[340063720,1728433834490,-151.0,0.00023812,7]
[340063721,1728433834500,-156.124762,0.00023812,7]
[340063722,1728433834509,-500.0,0.00023816,2]
[340063723,1728433834518,-656.82112095,0.00023822,2]
[340063724,1728433834527,-157.59,0.00023871,2]
[340063725,1728433834537,-699.688717,0.00023902,7]
[340063726,1728433834548,-699.688717,0.00023902,7]
[340063727,1728433834558,-304.04,0.00023905,2]
[340063728,1728433834567,-22114.0855513,0.00023906,4]
[340063729,1728433834576,-699.688717,0.00023906,7]
[340063730,1728433834586,-699.68871,0.00023906,7]
[340063731,1728433834595,-6562.26032315,0.00023912,4]
[340063732,1728433834607,-597.86703799,0.00023912,4]
[340063734,1728433837824,-250.0,0.00021034,2]
[340063735,1728433837833,-266.07115909,0.00021034,2]
[340063736,1728433837915,-7.96884091,0.00021034,2]
[340063737,1728433837928,-151.0,0.00021278,2]
[340063738,1728433837938,-265.389244,0.00021613,2]
[340063739,1728433837948,-174.3956492,0.00023566,2]
[340063740,1728433837960,-25.6043508,0.00023566,2]
[340063741,1728433837970,-445.66624489,0.00023912,4]
[340063742,1728433837989,-5505.4893363,0.00023912,4]
[340063743,1728433838030,-14228.550498,0.00023912,4]
[340063755,1728433840163,-151.0,0.00021204,2]
[340063756,1728433840173,-151.0,0.00021278,2]
[340063757,1728433840182,-151.0,0.00021613,2]
[340063758,1728433840192,-5857.17791298,0.00023912,4]
[340063759,1728433840207,-1886.52,0.00023912,4]
[340063767,1728433842701,-1000.0,0.000239,2]
[340063768,1728433842711,-1711.80000004,0.00023912,4]
[340063769,1728433842865,-391.82486442,0.00010759,2]
[340063770,1728433842933,-500.0,0.00010759,2]
[340063771,1728433842990,-500.5800002,0.00010759,2]
[340063773,1728433843007,-1950.23553538,0.00010759,2]
[340063775,1728433843016,-5402.62560266,0.00023912,4]
[340063791,1728434869146,-493.3932,0.00010759,2]
[340063792,1728434869168,-165.12754183,0.00010759,2]
[340063793,1728434869189,-4527.67994684,0.000109,2]
[340063794,1728434882907,-250.0,0.00011,2]
[340063796,1728435034984,-299.00615911,0.00013,2]
[340063824,1728435037927,-0.99384089,0.00013,2]
[340063826,1728435037936,-350.0,0.00015,2]
[340063827,1728435037947,-400.0,0.00017,2]
[340063828,1728435037956,-446.0,0.00018305,2]
[340063829,1728435037966,-811.0,0.00018305,2]
[340063830,1728435037975,-1022.04502572,0.00018305,2]
[340063831,1728435037989,-274.95497428,0.00018305,2]
[340063832,1728435037999,-561.512,0.00018305,2]
[340063833,1728435038008,-520.7584556,0.00018305,2]
[340063834,1728435038019,-413.2415444,0.00018305,2]
[340063835,1728435038028,-150.0,0.00018305,2]
[340063836,1728435038038,-1082.0,0.00018305,2]
[340063837,1728435038047,-438.7911931,0.00019,2]
[340063838,1728435038058,-11.2088069,0.00019,2]
[340063839,1728435038068,-2966.01650063,0.00019452,2]
[340063840,1728435038079,-1011.23349937,0.00019452,2]
[340063841,1728435038088,-281.18,0.00019532,2]
[340063842,1728435038098,-500.0,0.00021,2]
[340063843,1728435038107,-374.36992201,0.00021,2]
[340063844,1728435038130,-261.34483327,0.00021,2]
[340063845,1728435038142,-133.97524472,0.00021,2]
[340063846,1728435038152,-151.51648027,0.00021,2]
[340063847,1728435038163,-282.54722079,0.00021,2]
[340063848,1728435038174,-65.92629894,0.00021,2]
[340063849,1728435038184,-250.0,0.00021249,2]
[340063850,1728435038194,-157.59,0.00021313,2]
[340063851,1728435038204,-93.24724164,0.00021337,2]
[340063852,1728435038217,-106.75275836,0.00021337,2]
[340063853,1728435038226,-3418.04560645,0.00021345,2]
[340063854,1728435038241,-538.79913189,0.00021345,2]
[340063855,1728435038259,-358.33485164,0.00021345,2]
[340063856,1728435038270,-662.08970898,0.00021345,2]
[340063857,1728435038281,-437.98509047,0.00021345,2]
[340063858,1728435038292,-1520.98047815,0.00021345,2]
[340063859,1728435038303,-6343.80348218,0.00021345,2]
[340063860,1728435038314,-2113.65355014,0.00021345,2]
[340063861,1728435038333,-966.71268148,0.00021345,2]
[340063862,1728435038344,-822.49017547,0.00021345,2]
[340063863,1728435038356,-381.33465368,0.00021345,2]
[340063864,1728435038367,-703.01355159,0.00021345,2]
[340063865,1728435038399,-5632.75703788,0.00021345,2]
[340063866,1728435038409,-433.45,0.0002136,2]
[340063867,1728435038418,-250.0,0.00021404,2]
[340063868,1728435038428,-1000.0,0.00021405,2]
[340063869,1728435038437,-1500.0,0.00021455,2]
[340063870,1728435038446,-2751.0,0.00021647,2]
[340063871,1728435038455,-250.0,0.00021651,2]
[340063872,1728435038464,-281.18,0.00021796,2]
[340063873,1728435038473,-151.8,0.00021828,2]
[340063874,1728435038482,-189.68,0.00021871,2]
[340063875,1728435038497,-353.67,0.00021918,2]
[340063876,1728435038506,-209.43,0.00021918,2]
[340063877,1728435038515,-153.25,0.00022137,30]
[340063878,1728435038524,-170.243,0.00022137,2]
[340063879,1728435038533,-167.0,0.00022361,2]
[340063880,1728435038542,-157.59,0.00022665,2]
[340063881,1728435038552,-1000.0,0.000227,2]
[340063882,1728435038561,-207.07,0.00022887,2]
[340063883,1728435038571,-550.0,0.00023,2]
[340063884,1728435038579,-303.44,0.00023,2]
[340063885,1728435038589,-1014.96,0.00023,2]
[340063886,1728435038598,-358.83,0.00023239,2]
[340063887,1728435038607,-300.0,0.00023239,2]
[340063888,1728435038617,-358.83,0.00023239,2]
[340063889,1728435038626,-358.83,0.00023239,2]
[340063890,1728435038636,-3000.0,0.000236,2]
[340063891,1728435038645,-4477.67576271,0.00023712,2]
[340063896,1728435039918,-3112.56057952,0.00023712,2]
[340063897,1728435039974,-534.92578265,0.00023712,2]
[340063898,1728435040192,-485.3980518,0.00023712,2]
[340063899,1728435040306,-410.13177793,0.00023712,2]
[340063907,1728435045867,-349.99877428,0.00023712,2]
[340063910,1728435438072,150.21,0.00010959,2]
[340063911,1728435765479,250.0,0.00011,2]
[340063914,1728436232270,-290.832,0.00013,2]
[340063953,1728436240087,-9.168,0.00013,2]
[340063954,1728436240096,-150.0,0.00014,2]
[340063955,1728436240105,-1163.0,0.00015,2]
[340063956,1728436240115,-350.0,0.00015,2]
[340063957,1728436240124,-400.0,0.00017,2]
[340063958,1728436240133,-324.41560006,0.00019,2]
[340063959,1728436240263,-125.58439994,0.00019,2]
[340063960,1728436240275,-270.58,0.000192,7]
[340063961,1728436240284,-4830.85407416,0.00020338,2]
[340063962,1728436240517,-103.69592584,0.00020338,2]
[340063963,1728436240527,-165.97066991,0.00020338,2]
[340063964,1728436240541,-334.01933009,0.00020338,2]
[340063965,1728436240551,-253.06,0.00020338,2]
[340063966,1728436240561,-163.32340271,0.00021,2]
[340063977,1728436246035,-336.67659729,0.00021,2]
[340063978,1728436246046,-1000.0,0.00021714,2]
[340063979,1728436246055,-250.0,0.00021748,2]
[340063980,1728436246064,-157.59,0.00021784,2]
[340063981,1728436246073,-2751.0,0.0002179,2]
[340063982,1728436246082,-216.72,0.00021818,2]
[340063983,1728436246091,-250.0,0.00021884,2]
[340063984,1728436246100,-200.0,0.00021914,2]
[340063985,1728436246109,-174.52,0.00021918,2]
[340063986,1728436246119,-6166.46,0.00021935,2]
[340063987,1728436246129,-1500.0,0.00022132,2]
[340063988,1728436246138,-153.25,0.00022137,30]
[340063989,1728436246148,-9828.91,0.00022199,2]
[340063990,1728436246159,-250.0,0.00022328,2]
[340063991,1728436246168,-294.72,0.00022456,2]
[340063992,1728436246177,-253.06,0.00022601,2]
[340063993,1728436246186,-189.68,0.00022736,2]
[340063994,1728436246195,-152.0,0.00022968,3]
[340063995,1728436246206,-550.0,0.00023,2]
[340063996,1728436246216,-319.24,0.00023,2]
[340063997,1728436246225,-995.6,0.00023,2]
[340063998,1728436246235,-39978.0,0.00023426,2]
[340063999,1728436246244,-3000.0,0.000236,2]
[340064000,1728436246253,-157.59,0.00023627,2]
[340064001,1728436246263,-349.9988,0.00023712,2]
[340064002,1728436246274,-2000.0,0.00023714,2]
[340064003,1728436246283,-500.0,0.00023714,2]
[340064004,1728436246292,-2894.7516,0.00023722,2]
[340064005,1728436246301,-2500.0,0.00023722,2]
[340064006,1728436246312,-841.74094843,0.00023722,2]
[340064007,1728436246323,-157.97930372,0.00023722,2]
[340064008,1728436246332,-319.24,0.000238,2]
[340064009,1728436246343,-150.21922956,0.00023802,2]
[340064010,1728436246354,-438.932,0.00023806,2]
[340064011,1728436246363,-87407.945759,0.00023812,4]
[340064012,1728436246373,-2282.7933,0.00023822,2]
[340064014,1728436246385,-1148.033,0.00023822,2]
[340064015,1728436246394,-1651.6223,0.00023822,2]
[340064016,1728436246402,-83783.2084,0.00023822,2]
[340064017,1728436246411,-71685.52677584,0.00023822,2]
[340064018,1728436246423,-527.98913037,0.00023822,2]
[340064048,1728437432331,-226.26,0.00014,2]
[340064049,1728437432341,-2477.85559046,0.00015,2]
[340064050,1728437432468,-826.44816832,0.00015,2]
[340064051,1728437432480,-59.69624122,0.00015,2]
[340064052,1728437432489,-227.75,0.00020647,2]
[340064053,1728437432499,-206.60991861,0.00022242,2]
[340064054,1728437432510,-1293.39008139,0.00022242,2]
[340064055,1728437432519,-157.59,0.00022246,2]
[340064056,1728437432528,-2751.0,0.00022271,2]
[340064057,1728437432537,-189.68,0.00022282,2]
[340064058,1728437432546,-216.72,0.00022286,2]
[340064059,1728437432555,-200.0,0.00022311,2]
[340064060,1728437432564,-93.51301943,0.00022314,2]
[340064061,1728437432576,-156.48698057,0.00022314,2]
[340064062,1728437432585,-150.0030194,0.0002233,2]
[340064102,1728437438494,-24.5169806,0.0002233,2]
[340064103,1728437438505,-250.0,0.00022345,2]
[340064104,1728437438515,-1.63159549,0.00022364,2]
[340064105,1728437438526,-798.36840451,0.00022364,2]
[340064106,1728437438536,-200.0,0.00022468,2]
[340064107,1728437438545,-401.91734169,0.00022468,2]
[340064108,1728437438557,-98.07265831,0.00022468,2]
[340064109,1728437438567,-153.25,0.0002253,30]
[340064110,1728437438576,-278.12,0.00022765,2]
[340064111,1728437438585,-250.0,0.00022808,2]
[340064112,1728437438595,-179.36,0.00022907,2]
[340064113,1728437438604,-227.75,0.00022911,2]
[340064114,1728437438613,-55.11859492,0.00023,2]
[340064115,1728437438624,-256.64140508,0.00023,2]
[340064116,1728437438633,-187.17444645,0.00023,2]
[340064117,1728437438644,-697.22222227,0.00023,2]
[340064118,1728437438656,-114.72333128,0.00023,2]
[340064119,1728437438665,-202.69685287,0.00023,2]
[340064120,1728437438674,-167.08,0.00023472,2]
[340064121,1728437438683,-90.487184,0.00023714,2]
[340064122,1728437438695,-1732.37999999,0.00023714,2]
[340064123,1728437438706,-177.13281601,0.00023714,2]
[340064124,1728437438715,-500.0,0.00023714,2]
[340064125,1728437438725,-6797.06718395,0.00023722,2]
[340064126,1728437438744,-451.91171605,0.00023722,2]
[340064127,1728437438754,-2107.88893431,0.00023722,2]
[340064128,1728437438765,-956.47940434,0.00023722,2]
[340064129,1728437438776,-4314.98017366,0.00023722,2]
[340064130,1728437438788,-333.66685076,0.00023722,2]
[340064131,1728437438799,-541.90799385,0.00023722,2]
[340064132,1728437438810,-1862.57752793,0.00023722,2]
[340064134,1728437440479,-348.99829335,0.00023722,2]
[340064135,1728437440492,-338.29779146,0.00023722,2]
[340064136,1728437440503,-429.15446819,0.00023722,2]
[340064137,1728437440599,-552.33090042,0.00023722,2]
[340064138,1728437440610,-676.78766256,0.00023722,2]
[340064139,1728437440621,-32832.40933508,0.00023722,2]
[340064140,1728437440632,-1986.54423648,0.00023722,2]
[340064141,1728437440643,-418.28382068,0.00023722,2]
[340064142,1728437440655,-601.85834407,0.00023722,2]
[340064143,1728437440666,-373.97,0.00023722,2]
[340064144,1728437440677,-438.41131819,0.00023722,2]
[340064145,1728437440720,-1064.4559759,0.00023722,2]
[340064175,1728437577869,250.0,0.00011,2]
[340064181,1728438254236,150.21,0.00010959,2]
[340064192,1728438631629,-300.0,0.00013,2]
[340064193,1728438631639,-350.0,0.00015,2]
[340064194,1728438631649,-3374.0,0.00015,2]
[340064195,1728438631660,-400.0,0.00017,2]
[340064197,1728438631672,-2521.29979841,0.0002039,2]
[340064199,1728438631683,-246.01,0.0002039,2]
[340064201,1728438631693,-630.858,0.00020869,2]
[340064203,1728438631704,-452.937,0.00020869,2]
[340064205,1728438631715,-197.382,0.00020869,2]
[340064206,1728438631725,-561.297,0.00020869,2]
[340064208,1728438631736,-937.663,0.00020869,2]
[340064210,1728438631746,-150.316,0.00020869,2]
[340064212,1728438631757,-3366.953,0.00020869,2]
[340064214,1728438631768,-1856.2486566,0.00020869,2]
[340064222,1728438631842,-154.1713434,0.00020869,2]
[340064224,1728438631852,-556.428,0.00020869,2]
[340064226,1728438631864,-1909.412,0.00020869,2]
[340064228,1728438631874,-812.0,0.00020869,2]
[340064230,1728438631884,-152.582,0.00020869,2]
[340064232,1728438631894,-4622.85,0.00020869,2]
[340064233,1728438631904,-868.548,0.00020869,2]
[340064235,1728438631917,-159.5,0.00022197,2]
[340064237,1728438631936,-501.12,0.0002225,2]
[340064239,1728438631946,-499.99,0.0002225,2]
[340064241,1728438631957,-250.0,0.00022285,2]
[340064242,1728438631967,-250.0,0.00022289,2]
[340064243,1728438631978,-174.52,0.00022313,2]
[340064244,1728438631988,-200.0,0.00022353,2]
[340064245,1728438631999,-250.0,0.0002237,2]
[340064246,1728438632009,-49.41679964,0.00022372,2]
[340064247,1728438632022,-134.58320036,0.00022372,2]
[340064248,1728438632034,-365.41679964,0.00022438,2]
[340064249,1728438632047,-634.58320036,0.00022438,2]
[340064250,1728438632058,-165.33,0.00022464,2]
[340064251,1728438632068,-201.59,0.00022491,2]
[340064252,1728438632079,-153.25,0.0002261,30]
[340064253,1728438632089,-246.01,0.00022654,2]
[340064254,1728438632100,-231.76,0.0002267,2]
[340064255,1728438632110,-725.47679964,0.00022921,2]
[340064257,1728438637763,-1742.74470412,0.00022921,2]
[340064258,1728438637774,-500.0,0.00022922,2]
[340064259,1728438637785,-500.0,0.00022922,2]
[340064260,1728438637796,-500.0,0.00022922,2]
[340064261,1728438637808,-500.0,0.00022922,2]
[340064262,1728438637818,-500.0,0.00022922,2]
[340064263,1728438637829,-500.0,0.00022922,2]
[340064264,1728438637844,-500.0,0.00022922,2]
[340064265,1728438637855,-500.0,0.00022922,2]
[340064266,1728438637867,-500.0,0.00022922,2]
[340064267,1728438637877,-500.0,0.00022922,2]
[340064268,1728438637888,-500.0,0.00022922,2]
[340064269,1728438637899,-500.0,0.00022922,2]
[340064270,1728438637910,-500.0,0.00022922,2]
[340064271,1728438637926,-500.0,0.00022922,2]
[340064272,1728438637937,-500.0,0.00022922,2]
[340064273,1728438637949,-500.0,0.00022922,2]
[340064274,1728438637959,-500.0,0.00022922,2]
[340064275,1728438637970,-500.0,0.00022922,2]
[340064276,1728438637980,-500.0,0.00022922,2]
[340064277,1728438637990,-500.0,0.00022922,2]
[340064278,1728438638002,-500.0,0.00022922,2]
[340064279,1728438638012,-500.0,0.00022922,2]
[340064280,1728438638023,-500.0,0.00022922,2]
[340064281,1728438638033,-500.0,0.00022922,2]
[340064282,1728438638043,-500.0,0.00022922,2]
[340064283,1728438638060,-500.0,0.00022922,2]
[340064284,1728438638071,-500.0,0.00022922,2]
[340064285,1728438638082,-500.0,0.00022922,2]
[340064286,1728438638093,-500.0,0.00022922,2]
[340064287,1728438638104,-500.0,0.00022922,2]
[340064288,1728438638115,-500.0,0.00022922,2]
[340064289,1728438638126,-500.0,0.00022922,2]
[340064290,1728438638138,-500.0,0.00022922,2]
[340064291,1728438638149,-500.0,0.00022922,2]
[340064292,1728438638165,-500.0,0.00022922,2]
[340064293,1728438638182,-500.0,0.00022922,2]
[340064294,1728438638192,-500.0,0.00022922,2]
[340064295,1728438638204,-500.0,0.00022922,2]
[340064296,1728438638215,-500.0,0.00022922,2]
[340064297,1728438638225,-500.0,0.00022922,2]
[340064298,1728438638237,-500.0,0.00022922,2]
[340064299,1728438638249,-500.0,0.00022922,2]
[340064301,1728438638271,-500.0,0.00022922,2]
[340064302,1728438638283,-500.0,0.00022922,2]
[340064303,1728438638293,-500.0,0.00022922,2]
[340064304,1728438638304,-498.34516858,0.00022922,2]
[340064305,1728438638331,-1.65483142,0.00022922,2]
[340064306,1728438638342,-347.14460851,0.00022922,2]
[340064307,1728438639892,-152.85539149,0.00022922,2]
[340064308,1728438639904,-500.0,0.00022922,2]
[340064309,1728438639915,-500.0,0.00022922,2]
[340064310,1728438639928,-500.0,0.00022922,2]
[340064311,1728438639939,-500.0,0.00022922,2]
[340064312,1728438639951,-500.0,0.00022922,2]
[340064313,1728438639962,-500.0,0.00022922,2]
[340064314,1728438639973,-500.0,0.00022922,2]
[340064315,1728438639984,-500.0,0.00022922,2]
[340064316,1728438639995,-500.0,0.00022922,2]
[340064317,1728438640006,-500.0,0.00022922,2]
[340064318,1728438640017,-500.0,0.00022922,2]
[340064319,1728438640029,-500.0,0.00022922,2]
[340064320,1728438640039,-500.0,0.00022922,2]
[340064321,1728438640049,-500.0,0.00022922,2]
[340064322,1728438640066,-500.0,0.00022922,2]
[340064323,1728438640079,-500.0,0.00022922,2]
[340064324,1728438640091,-500.0,0.00022922,2]
[340064325,1728438640102,-500.0,0.00022922,2]
[340064326,1728438640113,-500.0,0.00022922,2]
[340064327,1728438640123,-500.0,0.00022922,2]
[340064328,1728438640134,-500.0,0.00022922,2]
[340064329,1728438640145,-500.0,0.00022922,2]
[340064330,1728438640156,-500.0,0.00022922,2]
[340064331,1728438640177,-500.0,0.00022922,2]
[340064332,1728438640189,-500.0,0.00022922,2]
[340064333,1728438640200,-500.0,0.00022922,2]
[340064334,1728438640211,-500.0,0.00022922,2]
[340064335,1728438640223,-500.0,0.00022922,2]
[340064336,1728438640234,-500.0,0.00022922,2]
[340064337,1728438640244,-500.0,0.00022922,2]
[340064338,1728438640255,-500.0,0.00022922,2]
[340064339,1728438640266,-500.0,0.00022922,2]
[340064340,1728438640280,-500.0,0.00022922,2]
[340064341,1728438640291,-351.83,0.00022922,2]
[340064342,1728438640302,-500.0,0.00022922,2]
[340064344,1728438640313,-500.0,0.00022922,2]
[340064346,1728438640325,-500.0,0.00022922,2]
[340064347,1728438640335,-500.0,0.00022922,2]
[340064348,1728438640347,-500.0,0.00022922,2]
[340064349,1728438640358,-500.0,0.00022922,2]
[340064350,1728438640369,-500.0,0.00022922,2]
[340064351,1728438640386,-500.0,0.00022922,2]
[340064352,1728438640398,-500.0,0.00022922,2]
[340064353,1728438640415,-500.0,0.00022922,2]
[340064354,1728438640433,-500.0,0.00022922,2]
[340064355,1728438640444,-500.0,0.00022922,2]
[340064356,1728438640456,-500.0,0.00022922,2]
[340064357,1728438640468,-500.0,0.00022922,2]
[340064358,1728438640479,-500.0,0.00022922,2]
[340064359,1728438640495,-500.0,0.00022922,2]
[340064360,1728438640507,-500.0,0.00022922,2]
[340064361,1728438640521,-500.0,0.00022922,2]
[340064362,1728438640533,-500.0,0.00022922,2]
[340064363,1728438640545,-500.0,0.00022922,2]
[340064364,1728438640556,-500.0,0.00022922,2]
[340064365,1728438640568,-500.0,0.00022922,2]
[340064366,1728438640579,-500.0,0.00022922,2]
[340064367,1728438640598,-500.0,0.00022922,2]
[340064368,1728438640611,-500.0,0.00022922,2]
[340064369,1728438640621,-500.0,0.00022922,2]
[340064370,1728438640632,-500.0,0.00022922,2]
[340064371,1728438640643,-500.0,0.00022922,2]
[340064372,1728438640653,-500.0,0.00022922,2]
[340064373,1728438640663,-500.0,0.00022922,2]
[340064374,1728438640676,-500.0,0.00022922,2]
[340064375,1728438640687,-500.0,0.00022922,2]
[340064376,1728438640705,-500.0,0.00022922,2]
[340064377,1728438640717,-500.0,0.00022922,2]
[340064378,1728438640728,-417.65,0.00022922,2]
[340064379,1728438640739,-500.0,0.00022922,2]
[340064380,1728438640750,-306.46,0.00023,2]
[340064381,1728438640761,-1000.28,0.00023,2]
[340064382,1728438640772,-168.17,0.00023423,2]
[340064383,1728438640783,-3000.0,0.000236,2]
[340064384,1728438640794,-150.0,0.0002364,2]
[340064385,1728438640809,-205.63511377,0.00023652,2]
[340064386,1728438640821,-150.0,0.00023662,2]
[340064387,1728438640831,-150.0,0.00023673,2]
[340064388,1728438640842,-151.0,0.00023673,7]
[340064389,1728438640853,-151.0,0.00023673,7]
[340064390,1728438640864,-251.755961,0.00023673,7]
[340064391,1728438640875,-251.755961,0.00023673,7]
[340064392,1728438640885,-179.692599,0.00023673,7]
[340064393,1728438640896,-179.692599,0.00023673,7]
[340064394,1728438640909,-151.0,0.00023673,7]
[340064395,1728438640924,-151.0,0.00023673,7]
[340064396,1728438640935,-150.0,0.00023679,2]
[340064397,1728438640945,-150.0,0.0002368,2]
[340064398,1728438640956,-798.2992362,0.00023698,2]
[340064399,1728438640967,-6705.5882,0.00023702,2]
[340064400,1728438640977,-18875.864,0.00023702,2]
[340064401,1728438640988,-3644.436,0.00023702,2]
[340064402,1728438641000,-1773.7698,0.00023702,2]
[340064403,1728438641163,-151.0,0.00023702,7]
[340064404,1728438641177,-152.209258,0.00023702,7]
[340064405,1728438641188,-263.283233,0.00023702,7]
[340064406,1728438641199,-151.756211,0.00023702,7]
[340064407,1728438641211,-151.756211,0.00023702,7]
[340064408,1728438641222,-151.0,0.00023702,7]